fUSD/lending_fUSD_20250502
["ID","MTS","AMOUNT","RATE_DAILY","PERIOD"]
[359631968,1746197777614,2278.6,0.00018771,2]
[359631969,1746197777637,3000.0,0.00018771,2]
[359631970,1746197777660,3000.0,0.00018771,2]
[359631971,1746197777682,3000.0,0.00018771,2]
[359631972,1746197777704,3000.0,0.00018771,2]
[359631973,1746197777727,3000.0,0.00018771,2]
[359631974,1746197777750,3000.0,0.00018771,2]
[359631975,1746197777775,3621.4,0.00018771,2]
[359631976,1746197784667,350.0,0.00032,120]
[359631977,1746197800070,150.0,0.00018771,2]
[359631978,1746197827452,2402.37,0.00018772,2]
[359631979,1746197833981,350.0,0.00032,120]
[359631980,1746197849052,150.0,1e-08,2]
[359631983,1746197872999,436.0,0.00032,120]
[359631986,1746197907699,2501.45,0.00018767,2]
[359631987,1746197915557,500.0,0.00032,120]
[359631988,1746197946855,498.55,0.00018767,2]
[359631989,1746197946878,3000.0,0.00018767,2]
[359631990,1746197946899,431.31,0.00018767,2]
[359631991,1746197955538,283.83,0.00018889,2]
[359631992,1746197973103,200.0,0.0003287,60]
[359631993,1746197975872,-1000.0,0.000225,15]
[359631994,1746197987881,1485.19,0.00018767,2]
[359631995,1746198027891,167.31,0.00019326,2]
[359631996,1746198044026,2832.69,0.00018889,2]
[359631997,1746198044047,456.81,0.00018889,2]
[359631998,1746198052951,-307.6660349,0.000225,15]
[359631999,1746198066403,6980.0,0.00032877,60]
[359632000,1746198096548,262.82,0.0001876,2]
[359632001,1746198114359,163.24639797,0.00019326,2]
[359632002,1746198136589,2117.12360203,0.0001876,2]
[359632003,1746198136612,318.98639797,0.0001876,2]
[359632004,1746198148476,250.0,0.00018768,2]
[359632008,1746198223863,648.39288114,0.00032877,60]
[359632009,1746198226406,-176.51281845,0.00019567,2]
[359632010,1746198226430,-478.36897376,0.00019568,2]
[359632011,1746198226453,-200.0,0.00019617,2]
[359632012,1746198226476,-200.0,0.00019647,2]
[359632013,1746198226498,-176.51281845,0.00019663,2]
[359632014,1746198226521,-1200.0,0.00019667,2]
[359632015,1746198226546,-300.0,0.00019667,2]
[359632016,1746198226569,-268.60538934,0.00019667,2]
[359632017,1746198239722,500.0,0.00032877,60]
[359632018,1746198292519,200.0,0.00018889,2]
[359632019,1746198303212,250.0,0.0001878,7]
[359632020,1746198305780,2164.91,0.00019,2]
[359632021,1746198307452,635.09,0.00019,2]
[359632022,1746198307475,1529.82,0.00019,2]
[359632023,1746198309198,1470.18,0.00019,2]
[359632024,1746198309225,694.73,0.00019,2]
[359632025,1746198311343,2164.91,0.00019,2]
[359632026,1746198367787,3000.0,7.945e-05,2]
[359632027,1746198367810,3000.0,7.945e-05,2]
[359632028,1746198367833,1159.808434,7.945e-05,2]
[359632029,1746198379844,155.09,0.0001877,2]
[359632030,1746198393676,1069.97,0.00018921,2]
[359632031,1746198395709,615.131566,0.00018771,2]
[359632032,1746198395736,384.868434,0.00018771,2]
[359632033,1746198429467,-467.7683,0.00019568,2]
[359632034,1746198429495,-200.0,0.00019617,2]
[359632035,1746198429519,-300.0,0.00019666,2]
[359632036,1746198429544,-908.67696862,0.00019667,2]
[359632037,1746198429568,-1200.0,0.00019667,2]
[359632038,1746198429591,-183.35052335,0.00019667,2]
[359632039,1746198429615,-163.24639797,0.00019667,2]
[359632040,1746198429639,-2500.0,0.00019667,2]
[359632041,1746198429662,-200.0,0.00019668,2]
[359632042,1746198429685,-250.0,0.00019668,2]
[359632043,1746198429707,-3691.9637,0.00019668,2]
[359632044,1746198429730,-3522.0966,0.00019668,2]
[359632045,1746198429753,-193.88045855,0.00019668,2]
[359632046,1746198429779,-1560.68015887,0.00019668,2]
[359632047,1746198429803,-196.66214301,0.00019669,2]
[359632048,1746198429826,-200.0,0.00019674,2]
[359632049,1746198429850,-908.67696862,0.00019693,2]
[359632050,1746198429874,-1560.68015884,0.00019694,2]
[359632051,1746198429898,-908.67696862,0.00019719,2]
[359632052,1746198429924,-1560.68015884,0.0001972,2]
[359632053,1746198429947,-908.67696862,0.00019745,2]
[359632054,1746198429972,-1560.68015884,0.00019745,2]
[359632055,1746198429996,-5546.70371922,0.00019753,2]
[359632056,1746198430019,-165.88,0.00019757,2]
[359632057,1746198430042,-165.88,0.00019758,2]
[359632058,1746198430065,-165.88,0.00019758,2]
[359632059,1746198430088,-165.88,0.00019758,2]
[359632060,1746198430122,-500.0,0.00019761,2]
[359632061,1746198430145,-412.76787947,0.00019761,2]
[359632062,1746198430178,-500.0,0.00019761,2]
[359632063,1746198430212,-500.0,0.00019761,2]
[359632064,1746198430244,-500.0,0.00019761,2]
[359632065,1746198430282,-500.0,0.00019761,2]
[359632066,1746198430322,-500.0,0.00019761,2]
[359632067,1746198430360,-500.0,0.00019761,2]
[359632068,1746198430397,-500.0,0.00019761,2]
[359632069,1746198430433,-500.0,0.00019761,2]
[359632070,1746198430475,-500.0,0.00019761,2]
[359632071,1746198430510,-500.0,0.00019761,2]
[359632072,1746198430543,-500.0,0.00019761,2]
[359632073,1746198430580,-500.0,0.00019761,2]
[359632074,1746198430617,-500.0,0.00019761,2]
[359632075,1746198430654,-500.0,0.00019761,2]
[359632076,1746198430691,-500.0,0.00019761,2]
[359632077,1746198430727,-500.0,0.00019761,2]
[359632078,1746198430766,-500.0,0.00019761,2]
[359632079,1746198430802,-500.0,0.00019761,2]
[359632080,1746198430841,-500.0,0.00019761,2]
[359632081,1746198430876,-500.0,0.00019761,2]
[359632082,1746198430917,-500.0,0.00019761,2]
[359632083,1746198430954,-500.0,0.00019761,2]
[359632084,1746198430996,-500.0,0.00019761,2]
[359632085,1746198431042,-500.0,0.00019761,2]
[359632086,1746198431085,-500.0,0.00019761,2]
[359632087,1746198431123,-500.0,0.00019761,2]
[359632088,1746198431157,-500.0,0.00019761,2]
[359632089,1746198431197,-500.0,0.00019761,2]
[359632090,1746198431236,-500.0,0.00019761,2]
[359632091,1746198431273,-500.0,0.00019761,2]
[359632092,1746198431311,-500.0,0.00019761,2]
[359632093,1746198431365,-500.0,0.00019761,2]
[359632094,1746198431404,-500.0,0.00019761,2]
[359632095,1746198431434,-500.0,0.00019761,2]
[359632096,1746198431461,-500.0,0.00019761,2]
[359632097,1746198431490,-228.94520574,0.00019761,2]
[359632098,1746198431527,-1062.78219052,0.00019761,2]
[359632099,1746198431564,-1062.78219052,0.00019761,2]
[359632100,1746198431600,-1062.78219052,0.00019761,2]
[359632101,1746198431635,-1062.78219052,0.00019761,2]
[359632102,1746198431672,-1062.78219052,0.00019761,2]
[359632103,1746198431710,-1062.78219052,0.00019761,2]
[359632104,1746198431746,-1062.78219052,0.00019761,2]
[359632105,1746198431786,-1062.78219052,0.00019761,2]
[359632106,1746198431826,-1062.78219052,0.00019761,2]
[359632107,1746198431863,-1062.78219052,0.00019761,2]
[359632108,1746198431901,-1062.78219052,0.00019761,2]
[359632109,1746198431936,-1062.78219052,0.00019761,2]
[359632110,1746198431975,-1062.78219052,0.00019761,2]
[359632111,1746198432025,-1062.78219052,0.00019761,2]
[359632112,1746198432071,-1062.78219052,0.00019761,2]
[359632113,1746198432117,-1062.78219052,0.00019761,2]
[359632114,1746198432159,-1062.78219052,0.00019761,2]
[359632115,1746198432198,-1062.78219052,0.00019761,2]
[359632116,1746198432238,-1062.78219052,0.00019761,2]
[359632117,1746198432276,-1062.78219052,0.00019761,2]
[359632118,1746198432316,-1062.78219052,0.00019761,2]
[359632119,1746198432354,-1062.78219052,0.00019761,2]
[359632120,1746198432393,-1062.78219052,0.00019761,2]
[359632121,1746198432431,-1062.78219052,0.00019761,2]
[359632122,1746198432470,-1062.78219052,0.00019761,2]
[359632123,1746198432509,-1062.78219052,0.00019761,2]
[359632124,1746198432546,-1062.78219052,0.00019761,2]
[359632125,1746198432584,-1062.78219052,0.00019761,2]
[359632126,1746198432621,-1062.78219052,0.00019761,2]
[359632127,1746198432663,-1062.78219052,0.00019761,2]
[359632128,1746198432703,-1062.78219052,0.00019761,2]
[359632129,1746198432743,-1047.5995878,0.00019761,2]
[359632130,1746198432789,-1047.5995878,0.00019761,2]
[359632131,1746198432831,-1047.5995878,0.00019761,2]
[359632132,1746198432872,-1047.5995878,0.00019761,2]
[359632133,1746198432913,-1047.5995878,0.00019761,2]
[359632134,1746198432952,-1047.5995878,0.00019761,2]
[359632135,1746198432992,-1047.5995878,0.00019761,2]
[359632136,1746198433030,-1047.5995878,0.00019761,2]
[359632137,1746198433069,-1047.5995878,0.00019761,2]
[359632138,1746198433109,-1047.5995878,0.00019761,2]
[359632139,1746198433150,-1047.5995878,0.00019761,2]
[359632140,1746198433187,-1047.5995878,0.00019761,2]
[359632141,1746198433224,-1047.5995878,0.00019761,2]
[359632142,1746198433262,-1047.5995878,0.00019761,2]
[359632143,1746198433299,-1047.5995878,0.00019761,2]
[359632144,1746198433343,-1047.5995878,0.00019761,2]
[359632145,1746198433386,-1047.5995878,0.00019761,2]
[359632146,1746198433417,-500.0,0.00019766,2]
[359632147,1746198433447,-214.60225424,0.00019766,2]
[359632148,1746198433477,-468.94,0.00019767,2]
[359632149,1746198433507,-450.0,0.00019767,2]
[359632150,1746198433535,-450.0,0.00019767,2]
[359632151,1746198433563,-467.66,0.00019767,2]
[359632152,1746198433595,-450.0,0.00019767,2]
[359632153,1746198433624,-827.310191,0.00019767,2]
[359632154,1746198433655,-450.0,0.00019767,2]
[359632155,1746198433684,-639.956814,0.00019767,2]
[359632156,1746198433712,-450.0,0.00019767,2]
[359632157,1746198433740,-450.0,0.00019767,2]
[359632158,1746198433769,-450.0,0.00019767,2]
[359632159,1746198433795,-450.0,0.00019767,2]
[359632160,1746198433822,-1369.9,0.00019767,2]
[359632161,1746198433851,-616.05,0.00019767,2]
[359632162,1746198433879,-450.0,0.00019767,2]
[359632163,1746198433905,-450.0,0.00019767,2]
[359632164,1746198433935,-450.0,0.00019767,2]
[359632165,1746198433965,-673.59,0.00019767,2]
[359632166,1746198433995,-450.0,0.00019767,2]
[359632167,1746198434024,-450.0,0.00019767,2]
[359632168,1746198434052,-558.22,0.00019767,2]
[359632169,1746198434079,-450.0,0.00019767,2]
[359632170,1746198434107,-627.16,0.00019767,2]
[359632171,1746198434135,-450.0,0.00019767,2]
[359632172,1746198434162,-450.0,0.00019767,2]
[359632173,1746198434189,-188.79780391,0.00019767,2]
[359632174,1746198434216,-450.0,0.00019767,2]
[359632175,1746198434245,-450.0,0.00019767,2]
[359632176,1746198434274,-566.93,0.00019767,2]
[359632177,1746198434301,-450.0,0.00019767,2]
[359632178,1746198434328,-450.0,0.00019767,2]
[359632179,1746198434354,-665.34,0.00019767,2]
[359632180,1746198434380,-489.32,0.00019767,2]
[359632181,1746198434405,-450.0,0.00019767,2]
[359632182,1746198434431,-523.42,0.00019767,2]
[359632183,1746198434457,-450.0,0.00019767,2]
[359632184,1746198434483,-450.0,0.00019767,2]
[359632185,1746198434511,-450.0,0.00019767,2]
[359632186,1746198434538,-545.4,0.00019767,2]
[359632187,1746198434566,-450.0,0.00019767,2]
[359632188,1746198434595,-450.0,0.00019767,2]
[359632189,1746198434625,-450.0,0.00019767,2]
[359632190,1746198435097,-554.95,0.00019767,2]
[359632191,1746198435125,-450.0,0.00019767,2]
[359632192,1746198435149,-450.0,0.00019767,2]
[359632193,1746198435172,-469.22,0.00019767,2]
[359632194,1746198435195,-450.0,0.00019767,2]
[359632195,1746198435218,-450.0,0.00019767,2]
[359632196,1746198435241,-450.0,0.00019767,2]
[359632197,1746198435265,-450.0,0.00019767,2]
[359632198,1746198435289,-638.1,0.00019767,2]
[359632199,1746198435314,-450.0,0.00019767,2]
[359632200,1746198435339,-1032.63,0.00019767,2]
[359632201,1746198435362,-450.0,0.00019767,2]
[359632202,1746198435387,-450.0,0.00019767,2]
[359632203,1746198435413,-450.0,0.00019767,2]
[359632204,1746198435437,-450.0,0.00019767,2]
[359632205,1746198435462,-450.0,0.00019767,2]
[359632206,1746198435489,-450.0,0.00019767,2]
[359632207,1746198435513,-678.82,0.00019767,2]
[359632208,1746198435537,-450.0,0.00019767,2]
[359632209,1746198435560,-250.0,0.00019767,2]
[359632210,1746198435583,-481.49,0.00019767,2]
[359632211,1746198435606,-450.0,0.00019767,2]
[359632212,1746198435630,-484.59,0.00019767,2]
[359632213,1746198435655,-559.76,0.00019767,2]
[359632214,1746198435678,-450.0,0.00019767,2]
[359632215,1746198435701,-450.0,0.00019767,2]
[359632216,1746198435726,-450.0,0.00019767,2]
[359632217,1746198435750,-471.42,0.00019767,2]
[359632218,1746198435776,-494.65,0.00019767,2]
[359632219,1746198435800,-450.0,0.00019767,2]
[359632220,1746198435822,-450.0,0.00019767,2]
[359632221,1746198435847,-450.0,0.00019767,2]
[359632222,1746198435869,-450.0,0.00019767,2]
[359632223,1746198435895,-599.07,0.00019767,2]
[359632224,1746198435917,-450.0,0.00019767,2]
[359632225,1746198435940,-450.0,0.00019767,2]
[359632226,1746198435964,-450.0,0.00019767,2]
[359632227,1746198435988,-450.0,0.00019767,2]
[359632228,1746198436012,-450.0,0.00019767,2]
[359632229,1746198436036,-450.0,0.00019767,2]
[359632230,1746198436059,-450.0,0.00019767,2]
[359632231,1746198436083,-450.0,0.00019767,2]
[359632232,1746198436108,-489.13,0.00019767,2]
[359632233,1746198436132,-527.42,0.00019767,2]
[359632234,1746198436156,-471.88,0.00019767,2]
[359632235,1746198436179,-450.0,0.00019767,2]
[359632236,1746198436201,-450.0,0.00019767,2]
[359632237,1746198436225,-450.0,0.00019767,2]
[359632238,1746198436248,-543.96,0.00019767,2]
[359632239,1746198436273,-1249.05,0.00019767,2]
[359632240,1746198436297,-479.88,0.00019767,2]
[359632241,1746198436321,-450.0,0.00019767,2]
[359632242,1746198436345,-500.0,0.00019767,2]
[359632243,1746198436368,-500.0,0.00019767,2]
[359632244,1746198436392,-450.0,0.00019767,2]
[359632245,1746198436415,-472.95,0.00019767,2]
[359632246,1746198436437,-889.36,0.00019767,2]
[359632247,1746198436460,-450.0,0.00019767,2]
[359632248,1746198436483,-450.0,0.00019767,2]
[359632249,1746198436506,-450.0,0.00019767,2]
[359632250,1746198436530,-450.0,0.00019767,2]
[359632251,1746198436555,-1712.07,0.00019767,2]
[359632252,1746198436579,-450.0,0.00019767,2]
[359632253,1746198436604,-731.51,0.00019767,2]
[359632254,1746198436628,-450.0,0.00019767,2]
[359632255,1746198436654,-450.0,0.00019767,2]
[359632256,1746198436680,-1495.39,0.00019767,2]
[359632257,1746198436703,-450.0,0.00019767,2]
[359632258,1746198436729,-450.0,0.00019767,2]
[359632259,1746198436753,-450.0,0.00019767,2]
[359632260,1746198436778,-508.99,0.00019767,2]
[359632261,1746198436805,-2900.18,0.00019767,2]
[359632262,1746198436829,-450.0,0.00019767,2]
[359632263,1746198436854,-450.0,0.00019767,2]
[359632264,1746198436879,-450.0,0.00019767,2]
[359632265,1746198436903,-450.0,0.00019767,2]
[359632266,1746198436928,-450.0,0.00019767,2]
[359632267,1746198436952,-450.0,0.00019767,2]
[359632268,1746198436975,-450.0,0.00019767,2]
[359632269,1746198437000,-450.0,0.00019767,2]
[359632270,1746198437024,-450.0,0.00019767,2]
[359632271,1746198437048,-450.0,0.00019767,2]
[359632272,1746198437072,-450.0,0.00019767,2]
[359632273,1746198437096,-388.43624686,0.00019767,2]
[359632274,1746198437122,-566.55,0.00019767,2]
[359632275,1746198437146,-450.0,0.00019767,2]
[359632276,1746198437170,-518.37,0.00019767,2]
[359632277,1746198437193,-450.0,0.00019767,2]
[359632278,1746198437219,-513.54,0.00019767,2]
[359632279,1746198437453,-450.0,0.00019767,2]
[359632280,1746198437480,-450.0,0.00019767,2]
[359632281,1746198437505,-682.54,0.00019767,2]
[359632282,1746198437530,-703.68,0.00019767,2]
[359632283,1746198437555,-489.85,0.00019767,2]
[359632284,1746198437580,-1282.92,0.00019767,2]
[359632285,1746198437606,-875.03,0.00019767,2]
[359632286,1746198437630,-501.28,0.00019767,2]
[359632287,1746198437655,-450.0,0.00019767,2]
[359632288,1746198437679,-680.31,0.00019767,2]
[359632289,1746198437706,-450.0,0.00019767,2]
[359632290,1746198437731,-462.79,0.00019767,2]
[359632291,1746198437755,-462.73,0.00019767,2]
[359632292,1746198437781,-1179.13,0.00019767,2]
[359632293,1746198437806,-450.0,0.00019767,2]
[359632294,1746198437830,-450.0,0.00019767,2]
[359632295,1746198437856,-450.0,0.00019767,2]
[359632296,1746198437880,-221.30547546,0.00019767,2]
[359632297,1746198437904,-450.0,0.00019767,2]
[359632298,1746198437931,-450.0,0.00019767,2]
[359632299,1746198437958,-2721.93,0.00019767,2]
[359632300,1746198437985,-450.0,0.00019767,2]
[359632301,1746198438010,-783.23,0.00019767,2]
[359632302,1746198438034,-655.34,0.00019767,2]
[359632303,1746198438058,-450.0,0.00019767,2]
[359632304,1746198438082,-646.97,0.00019767,2]
[359632305,1746198438110,-450.0,0.00019767,2]
[359632306,1746198438136,-450.0,0.00019767,2]
[359632307,1746198438162,-450.0,0.00019767,2]
[359632308,1746198438189,-450.0,0.00019767,2]
[359632309,1746198438214,-450.0,0.00019767,2]
[359632310,1746198438242,-908.54,0.00019767,2]
[359632311,1746198438268,-607.64,0.00019767,2]
[359632312,1746198438293,-695.65,0.00019767,2]
[359632313,1746198438317,-12570.05,0.00019767,2]
[359632314,1746198438342,-450.0,0.00019767,2]
[359632315,1746198438366,-450.0,0.00019767,2]
[359632316,1746198438392,-493.04,0.00019767,2]
[359632317,1746198438421,-412.29410522,0.00019767,2]
[359632318,1746198438445,-556.57,0.00019767,2]
[359632319,1746198438469,-450.0,0.00019767,2]
[359632320,1746198438494,-450.0,0.00019767,2]
[359632321,1746198438519,-450.0,0.00019767,2]
[359632322,1746198438548,-510.05,0.00019767,2]
[359632323,1746198438573,-450.0,0.00019767,2]
[359632324,1746198438598,-450.0,0.00019767,2]
[359632325,1746198438622,-491.86,0.00019767,2]
[359632326,1746198438647,-450.0,0.00019767,2]
[359632327,1746198438670,-458.93,0.00019767,2]
[359632328,1746198438696,-751.35,0.00019767,2]
[359632329,1746198438721,-739.36,0.00019767,2]
[359632330,1746198438915,-593.76,0.00019767,2]
[359632331,1746198438956,-450.0,0.00019767,2]
[359632332,1746198438984,-629.8,0.00019767,2]
[359632333,1746198439012,-450.0,0.00019767,2]
[359632334,1746198439039,-781.57,0.00019767,2]
[359632335,1746198439065,-450.0,0.00019767,2]
[359632336,1746198439091,-804.31,0.00019767,2]
[359632337,1746198439118,-450.0,0.00019767,2]
[359632338,1746198439144,-450.0,0.00019767,2]
[359632339,1746198439169,-450.0,0.00019767,2]
[359632340,1746198439195,-450.0,0.00019767,2]
[359632341,1746198439220,-450.0,0.00019767,2]
[359632342,1746198439247,-450.0,0.00019767,2]
[359632343,1746198439270,-450.0,0.00019767,2]
[359632344,1746198439294,-450.0,0.00019767,2]
[359632345,1746198439319,-606.9,0.00019767,2]
[359632346,1746198439345,-521.48,0.00019767,2]
[359632347,1746198439370,-450.0,0.00019767,2]
[359632348,1746198439395,-1455.88,0.00019767,2]
[359632349,1746198439420,-888.59,0.00019767,2]
[359632350,1746198439445,-743.21,0.00019767,2]
[359632351,1746198439471,-450.0,0.00019767,2]
[359632352,1746198439497,-450.0,0.00019767,2]
[359632353,1746198439523,-450.0,0.00019767,2]
[359632354,1746198439547,-754.62,0.00019767,2]
[359632355,1746198439572,-450.0,0.00019767,2]
[359632356,1746198439600,-450.0,0.00019767,2]
[359632357,1746198439624,-450.0,0.00019767,2]
[359632358,1746198439648,-450.0,0.00019767,2]
[359632359,1746198439672,-450.0,0.00019767,2]
[359632360,1746198439697,-450.0,0.00019767,2]
[359632361,1746198439722,-450.0,0.00019767,2]
[359632362,1746198439747,-673.42,0.00019767,2]
[359632363,1746198439772,-450.0,0.00019767,2]
[359632364,1746198439796,-450.0,0.00019767,2]
[359632365,1746198439820,-450.0,0.00019767,2]
[359632366,1746198439846,-900.29,0.00019767,2]
[359632367,1746198439871,-450.0,0.00019767,2]
[359632368,1746198439895,-450.0,0.00019767,2]
[359632369,1746198439919,-450.0,0.00019767,2]
[359632370,1746198439944,-450.0,0.00019767,2]
[359632371,1746198439968,-533.55,0.00019767,2]
[359632372,1746198439993,-450.0,0.00019767,2]
[359632373,1746198440019,-450.0,0.00019767,2]
[359632374,1746198440043,-455.36,0.00019767,2]
[359632375,1746198440069,-8209.58,0.00019767,2]
[359632376,1746198440093,-450.0,0.00019767,2]
[359632377,1746198440121,-477.32,0.00019767,2]
[359632378,1746198440146,-590.59,0.00019767,2]
[359632379,1746198440171,-450.0,0.00019767,2]
[359632380,1746198440197,-450.0,0.00019767,2]
[359632381,1746198440223,-512.06,0.00019767,2]
[359632382,1746198440250,-450.0,0.00019767,2]
[359632383,1746198440276,-450.0,0.00019767,2]
[359632384,1746198440301,-450.0,0.00019767,2]
[359632385,1746198440327,-450.0,0.00019767,2]
[359632386,1746198440351,-450.0,0.00019767,2]
[359632387,1746198440378,-8423.05,0.00019767,2]
[359632388,1746198440403,-147544.4,0.00019767,2]
[359632389,1746198440428,-757.01,0.00019767,2]
[359632390,1746198440453,-450.0,0.00019767,2]
[359632391,1746198440478,-524.98,0.00019767,2]
[359632392,1746198440504,-769.32,0.00019767,2]
[359632393,1746198440529,-1850.0,0.00019767,2]
[359632394,1746198440554,-644.9,0.00019767,2]
[359632395,1746198440578,-450.0,0.00019767,2]
[359632396,1746198440603,-560.14,0.00019767,2]
[359632397,1746198440627,-1905.03,0.00019767,2]
[359632398,1746198440652,-732.18,0.00019767,2]
[359632399,1746198440677,-695.23,0.00019767,2]
[359632400,1746198440701,-654.03,0.00019767,2]
[359632401,1746198440725,-450.0,0.00019767,2]
[359632402,1746198440750,-450.0,0.00019767,2]
[359632403,1746198440777,-450.0,0.00019767,2]
[359632404,1746198440802,-450.0,0.00019767,2]
[359632405,1746198440826,-450.0,0.00019767,2]
[359632406,1746198440851,-779.62,0.00019767,2]
[359632407,1746198440876,-475.51,0.00019767,2]
[359632408,1746198440900,-450.0,0.00019767,2]
[359632409,1746198440924,-939.2,0.00019767,2]
[359632410,1746198440949,-450.0,0.00019767,2]
[359632411,1746198440974,-450.0,0.00019767,2]
[359632412,1746198440999,-1617.81,0.00019767,2]
[359632413,1746198441024,-583.34487204,0.00019767,2]
[359632414,1746198441049,-486.23,0.00019767,2]
[359632415,1746198441075,-450.0,0.00019767,2]
[359632416,1746198441099,-450.0,0.00019767,2]
[359632417,1746198441123,-484.47,0.00019767,2]
[359632418,1746198441148,-450.0,0.00019767,2]
[359632419,1746198441173,-567.84,0.00019767,2]
[359632420,1746198441198,-673.04,0.00019767,2]
[359632421,1746198441222,-450.0,0.00019767,2]
[359632422,1746198441247,-516.56880294,0.00019767,2]
[359632423,1746198441272,-450.0,0.00019767,2]
[359632424,1746198441296,-450.0,0.00019767,2]
[359632425,1746198441320,-450.0,0.00019767,2]
[359632426,1746198441346,-507.02,0.00019767,2]
[359632427,1746198441373,-450.0,0.00019767,2]
[359632428,1746198441397,-450.0,0.00019767,2]
[359632429,1746198441421,-657.13,0.00019767,2]
[359632430,1746198441446,-714.37,0.00019767,2]
[359632431,1746198441472,-450.0,0.00019767,2]
[359632432,1746198441498,-966.37,0.00019767,2]
[359632433,1746198441522,-450.0,0.00019767,2]
[359632434,1746198441546,-450.0,0.00019767,2]
[359632435,1746198441572,-450.0,0.00019767,2]
[359632436,1746198441597,-450.0,0.00019767,2]
[359632437,1746198441623,-464.17,0.00019767,2]
[359632438,1746198441647,-450.0,0.00019767,2]
[359632439,1746198441671,-450.0,0.00019767,2]
[359632440,1746198441696,-715.91,0.00019767,2]
[359632441,1746198441721,-450.0,0.00019767,2]
[359632442,1746198441795,-877.73,0.00019767,2]
[359632443,1746198441823,-3053.68,0.00019767,2]
[359632444,1746198441850,-735.67,0.00019767,2]
[359632445,1746198441877,-450.0,0.00019767,2]
[359632446,1746198441903,-450.0,0.00019767,2]
[359632447,1746198441928,-450.0,0.00019767,2]
[359632448,1746198441954,-465.0,0.00019767,2]
[359632449,1746198441980,-450.0,0.00019767,2]
[359632450,1746198442007,-450.0,0.00019767,2]
[359632451,1746198442033,-694.93,0.00019767,2]
[359632452,1746198442060,-729.69,0.00019767,2]
[359632453,1746198442099,-450.0,0.00019768,2]
[359632454,1746198442126,-450.0,0.00019768,2]
[359632455,1746198442151,-450.0,0.00019768,2]
[359632456,1746198442176,-590.37976256,0.00019768,2]
[359632457,1746198442200,-450.0,0.00019768,2]
[359632458,1746198442227,-580.7,0.00019768,2]
[359632459,1746198442252,-450.0,0.00019768,2]
[359632460,1746198442278,-450.0,0.00019768,2]
[359632461,1746198442304,-450.0,0.00019768,2]
[359632462,1746198442328,-450.0,0.00019768,2]
[359632463,1746198442354,-450.0,0.00019768,2]
[359632464,1746198442378,-450.0,0.00019768,2]
[359632465,1746198442403,-450.0,0.00019768,2]
[359632466,1746198442428,-450.0,0.00019768,2]
[359632467,1746198442451,-450.0,0.00019768,2]
[359632468,1746198442476,-943.29,0.00019768,2]
[359632469,1746198442501,-450.0,0.00019768,2]
[359632470,1746198442526,-450.0,0.00019768,2]
[359632471,1746198442550,-450.0,0.00019768,2]
[359632472,1746198442576,-450.0,0.00019768,2]
[359632473,1746198442601,-450.0,0.00019768,2]
[359632474,1746198442625,-698.89,0.00019768,2]